lending/lending_fUSD_20251018
["ID","MTS","AMOUNT","RATE_DAILY","PERIOD"]
[391787652,1760815841532,-151.0,0.00025248,2]
[391787653,1760815841541,-151.0,0.00025248,2]
[391787654,1760815841550,-151.0,0.00025248,2]
[391787655,1760815841560,-151.0,0.00025248,2]
[391787656,1760815841569,-151.0,0.00025248,2]
[391787657,1760815841578,-151.0,0.00025248,2]
[391787658,1760815841588,-151.0,0.00025248,2]
[391787659,1760815841597,-151.0,0.00025248,2]
[391787660,1760815841606,-1091.0,0.00025264,2]
[391787661,1760815841616,-200.0,0.00025796,2]
[391787662,1760815841625,-311.63557553,0.00026344,2]
[391787663,1760815841634,-1091.0,0.00026527,2]
[391787664,1760815841645,-2593.288334,0.00026917,2]
[391787665,1760815841654,-695.27120512,0.0002749,2]
[391787666,1760815841664,-176.38,0.000275,2]
[391787667,1760815841673,-1091.0,0.00027853,5]
[391787668,1760815841683,-2593.288334,0.00028767,2]
[391787669,1760815841692,-286.77,0.00028972,30]
[391787670,1760815841701,-388.01662702,0.00029177,2]
[391787671,1760815841710,-1091.0,0.00029246,5]
[391787672,1760815841720,-172.63,0.000293,7]
[391787673,1760815841729,-11223.0,0.00029506,2]
[391787674,1760815841739,-600.0,0.00029532,2]
[391787675,1760815841748,-151.0,0.00029532,2]
[391787676,1760815841757,-1000.0,0.00029532,2]
[391787677,1760815841767,-9552.16786547,0.00029532,2]
[391787678,1760815841776,-1000.0,0.00029532,2]
[391787679,1760815841785,-277.35679052,0.00029532,2]
[391787680,1760815841795,-1000.0,0.00029532,2]
[391787681,1760815841804,-1000.0,0.00029532,2]
[391787682,1760815841813,-1000.0,0.00029532,2]
[391787683,1760815841823,-750.0,0.00029532,2]
[391787684,1760815841832,-1000.0,0.00029532,2]
[391787685,1760815841842,-721.12765535,0.00029532,2]
[391787686,1760815841850,-1000.0,0.00029532,2]
[391787687,1760815841859,-1000.0,0.00029532,2]
[391787688,1760815841872,-1000.0,0.00029532,2]
[391787689,1760815841881,-1000.0,0.00029532,2]
[391787690,1760815841891,-1000.0,0.00029532,2]
[391787691,1760815841901,-1000.0,0.00029532,2]
[391787692,1760815841912,-1000.0,0.00029532,2]
[391787693,1760815841921,-1000.0,0.00029532,2]
[391787694,1760815841930,-1000.0,0.00029532,2]
[391787695,1760815841940,-1000.0,0.00029532,2]
[391787696,1760815841950,-1000.0,0.00029532,2]
[391787697,1760815841959,-1000.0,0.00029532,2]
[391787698,1760815841969,-151.0,0.00029532,2]
[391787699,1760815841978,-1000.0,0.00029532,2]
[391787700,1760815841987,-1000.0,0.00029532,2]
[391787701,1760815841997,-1000.0,0.00029532,2]
[391787702,1760815842007,-1000.0,0.00029532,2]
[391787703,1760815842016,-1000.0,0.00029532,2]
[391787704,1760815842027,-693.3919763,0.00029532,2]
[391787705,1760815842038,-1000.0,0.00029532,2]
[391787706,1760815842048,-250.0,0.00029532,2]
[391787707,1760815842058,-227.68844372,0.00029532,2]
[391787708,1760815842068,-151.0,0.00029532,2]
[391787709,1760815842080,-151.0,0.00029532,2]
[391787710,1760815842090,-151.0,0.00029532,2]
[391787711,1760815842100,-151.0,0.00029532,2]
[391787712,1760815842109,-151.0,0.00029532,2]
[391787713,1760815842119,-250.0,0.00029532,2]
[391787714,1760815842131,-151.0,0.00029532,2]
[391787715,1760815842141,-250.0,0.00029532,2]
[391787716,1760815842151,-151.0,0.00029532,2]
[391787717,1760815842161,-267.04530677,0.00029532,2]
[391787718,1760815842171,-322.6107,0.00029532,2]
[391787719,1760815842180,-1000.0,0.00029597,4]
[391787720,1760815842190,-150.07,0.00029741,2]
[391787721,1760815842199,-5347.36,0.00030136,2]
[391787722,1760815842209,-651.66,0.00030136,2]
[391787723,1760815842218,-307.2545781,0.00030251,2]
[391787724,1760815842228,-286.77,0.00030263,30]
[391787725,1760815842237,-5347.36,0.0003041,2]
[391787726,1760815842246,-651.66,0.0003041,2]
[391787727,1760815842255,-2593.288334,0.00030616,2]
[391787728,1760815842266,-5347.36,0.00030684,2]
[391787729,1760815842275,-651.66,0.00030684,2]
[391787730,1760815842284,-1091.0,0.00030708,5]
[391787731,1760815842294,-5347.36,0.00030958,2]
[391787732,1760815842304,-651.66,0.00030958,2]
[391787733,1760815842314,-813.22221109,0.00031044,2]
[391787734,1760815842324,-500.0,0.00031098,7]
[391787735,1760815842333,-500.0,0.00031098,7]
[391787736,1760815842343,-500.0,0.00031098,7]
[391787737,1760815842352,-497.71,0.00031122,2]
[391787738,1760815842361,-5347.36,0.00031232,2]
[391787739,1760815842371,-651.66,0.00031232,2]
[391787740,1760815842382,-296.16,0.00031287,2]
[391787741,1760815842391,-154.76,0.00031345,30]
[391787742,1760815842402,-162.13,0.00031389,2]
[391787743,1760815842411,-176.38,0.000314,2]
[391787744,1760815842421,-250.0,0.00031419,2]
[391787745,1760815842431,-200.0,0.00031425,2]
[391787746,1760815842440,-5347.36,0.00031506,2]
[391787747,1760815842450,-651.66,0.00031506,2]
[391787748,1760815842459,-150.0,0.00031525,2]
[391787749,1760815842467,-286.77,0.00031554,30]
[391787750,1760815842476,-176.09,0.00031578,2]
[391787751,1760815842484,-731.14736349,0.00031588,2]
[391787752,1760815842492,-1000.0,0.00031681,30]
[391787753,1760815842500,-1000.0,0.00031681,30]
[391787754,1760815842509,-303.615,0.00031681,30]
[391787755,1760815842518,-150.0,0.00031753,2]
[391787756,1760815842526,-351.91,0.00031753,2]
[391787757,1760815842534,-1466.95778474,0.00031777,4]
[391787758,1760815842543,-844.35205914,0.0003178,2]
[391787759,1760815842554,-491.01315624,0.0003178,2]
[391787760,1760815842612,-4011.99478462,0.0003178,2]
[391787761,1760815842621,-651.66,0.0003178,2]
[391787762,1760815842631,-1305.71,0.00032,120]
[391787763,1760815842640,-1245.40853147,0.00032054,2]
[391787766,1760815843299,-1312.97537188,0.00032054,2]
[391787767,1760815843356,-470.680005,0.00032054,2]
[391787768,1760815843518,-448.25575165,0.00032054,2]
[391787769,1760815843530,-1870.04034,0.00032054,2]
[391787770,1760815843540,-651.66,0.00032054,2]
[391787771,1760815843549,-475.74147678,0.00032096,2]
[391787772,1760815843559,-18547.45498798,0.00032144,2]
[391787773,1760815843568,-734.42,0.00032144,31]
[391787774,1760815843578,-168.07631682,0.00032161,2]
[391787775,1760815843588,-150.0,0.00032161,2]
[391787776,1760815843598,-150.0,0.00032161,2]
[391787777,1760815843607,-150.0,0.00032161,2]
[391787778,1760815843617,-200.0,0.00032161,2]
[391787779,1760815843627,-200.0,0.00032161,2]
[391787780,1760815843636,-500.0,0.00032161,2]
[391787781,1760815843646,-200.0,0.00032161,2]
[391787782,1760815843655,-150.36,0.0003217,2]
[391787783,1760815843666,-207.76230935,0.0003217,2]
[391787784,1760815843676,-31655.85074667,0.0003218,2]
[391787785,1760815843686,-1000.0,0.00032198,4]
[391787786,1760815843696,-145.9768224,0.00032216,2]
[391787787,1760815846317,-4.0231776,0.00032216,2]
[391787788,1760815846327,-500.0,0.00032216,2]
[391787789,1760815846337,-1091.0,0.00032244,5]
[391787790,1760815846347,-150.0,0.00032271,2]
[391787791,1760815846356,-500.0,0.00032271,2]
[391787792,1760815846366,-200.0,0.00032272,2]
[391787793,1760815846375,-172.63,0.000323,30]
[391787794,1760815846385,-150.0,0.00032325,2]
[391787795,1760815846394,-500.0,0.00032325,2]
[391787796,1760815846404,-5347.36,0.00032328,2]
[391787797,1760815846414,-651.66,0.00032328,2]
[391787798,1760815846424,-26042.5295116,0.00032351,2]
[391787799,1760815846434,-500.0,0.0003238,2]
[391787800,1760815846444,-150.36,0.0003239,2]
[391787801,1760815846453,-150.36,0.0003239,2]
[391787802,1760815846463,-51939.16359747,0.000324,17]
[391787803,1760815846475,-13319.91331321,0.000324,17]
[391787804,1760815846486,-2711.07199998,0.000324,17]
[391787805,1760815846589,-4117.96850006,0.000324,17]
[391787809,1760816417596,553276.08,0.00032774,30]
[391787812,1760816577961,500000.0,0.00032775,45]
[391787815,1760816989906,271.52,0.00013699,2]
[391787821,1760817031494,-500.0,0.0001524,2]
[391787822,1760817031504,-250.0,0.00015245,2]
[391787823,1760817031515,-500.0,0.0001525,2]
[391787824,1760817031526,-22.08756282,0.0001526,2]
[391787825,1760817031541,-277.91243718,0.0001526,2]
[391787826,1760817031552,-500.0,0.00015299,2]
[391787827,1760817031562,-203.47756282,0.00015299,2]
[391787828,1760817031576,-296.52243718,0.00015299,2]
[391787829,1760817031586,-500.0,0.00015299,2]
[391787830,1760817031596,-160.0,0.00015319,2]
[391787831,1760817031606,-300.0,0.00015393,2]
[391787832,1760817031616,-300.0,0.00015393,2]
[391787833,1760817031626,-300.0,0.00015393,2]
[391787834,1760817031636,-1200.0,0.00015804,2]
[391787835,1760817031646,-500.0,0.00016438,2]
[391787836,1760817031656,-300.0,0.00016761,2]
[391787837,1760817031666,-300.0,0.00016761,2]
[391787838,1760817031676,-1200.0,0.00016763,2]
[391787839,1760817031686,-195.0,0.00016764,2]
[391787840,1760817031696,-195.0,0.00016764,2]
[391787841,1760817031706,-300.0,0.00016764,2]
[391787842,1760817031716,-150.0,0.00016764,2]
[391787843,1760817031727,-383.95182773,0.00016764,2]
[391787844,1760817031737,-377.9529461,0.00016764,2]
[391787845,1760817031747,-2500.0,0.00016764,2]
[391787846,1760817031756,-500.0,0.00016764,2]
[391787847,1760817031766,-250.0,0.00016764,2]
[391787848,1760817031775,-330.07541042,0.000169,2]
[391787849,1760817031784,-1680.0,0.00017369,2]
[391787850,1760817031794,-420.0,0.00018311,2]
[391787851,1760817031804,-1680.0,0.00018313,2]
[391787852,1760817031814,-720.0,0.0001909,2]
[391787853,1760817031824,-500.0,0.00019711,2]
[391787854,1760817031834,-500.0,0.00019711,2]
[391787855,1760817031844,-587.0,0.00020005,2]
[391787857,1760817031853,-1466.0,0.00020007,2]
[391787859,1760817031863,-271.52,0.00020187,2]
[391787861,1760817031873,-1409.63391455,0.00020564,2]
[391787862,1760817031883,-217.0,0.00022423,2]
[391787863,1760817031893,-151.0,0.00022424,2]
[391787864,1760817031904,-151.0,0.00022424,2]
[391787865,1760817031914,-200.0,0.00022424,2]
[391787866,1760817031925,-151.0,0.00022424,2]
[391787867,1760817031935,-158.32181472,0.00022424,2]
[391787868,1760817031944,-500.0,0.00022424,2]
[391787869,1760817031954,-500.0,0.00022424,2]
[391787871,1760817031963,-500.0,0.00022424,2]
[391787873,1760817031973,-500.0,0.00022424,2]
[391787875,1760817031982,-182.66312407,0.00022424,2]
[391787876,1760817031992,-151.0,0.00022424,2]
[391787877,1760817032002,-151.0,0.00022424,2]
[391787878,1760817032012,-151.0,0.00022424,2]
[391787879,1760817032023,-151.0,0.00022424,2]
[391787880,1760817032033,-151.0,0.00022424,2]
[391787881,1760817032042,-151.0,0.00022424,2]
[391787882,1760817032052,-200.0,0.00022424,2]
[391787883,1760817032062,-151.0,0.00022424,2]
[391787884,1760817032072,-151.0,0.00022424,2]
[391787885,1760817032082,-151.0,0.00022424,2]
[391787886,1760817032092,-200.0,0.00022424,2]
[391787887,1760817032102,-151.0,0.00022424,2]
[391787888,1760817032112,-151.0,0.00022424,2]
[391787889,1760817032125,-151.0,0.00022424,2]
[391787890,1760817032135,-291.79566579,0.00022424,2]
[391787891,1760817032145,-151.0,0.00022424,2]
[391787892,1760817032156,-151.0,0.00022424,2]
[391787893,1760817032167,-151.0,0.00022424,2]
[391787894,1760817032177,-151.0,0.00022424,2]
[391787895,1760817032187,-151.0,0.00022424,2]
[391787896,1760817032196,-151.0,0.00022424,2]
[391787897,1760817032206,-151.0,0.00022424,2]
[391787898,1760817032216,-151.0,0.00022424,2]
[391787899,1760817032226,-151.0,0.00022424,2]
[391787900,1760817032235,-151.0,0.00022424,2]
[391787901,1760817032245,-151.0,0.00022424,2]
[391787902,1760817032254,-1682.419772,0.00022438,2]
[391787903,1760817032264,-200.0,0.00022972,2]
[391787904,1760817032274,-275.22888194,0.00022972,2]
[391787905,1760817032283,-152.947252,0.00023177,2]
[391787906,1760817032293,-200.0,0.0002352,2]
[391787907,1760817032303,-200.0,0.00024068,2]
[391787908,1760817032313,-283.29441731,0.00024616,2]
[391787909,1760817032323,-500.0,0.00024932,2]
[391787910,1760817032333,-271.52,0.00026676,2]
[391787911,1760817032343,-1000.0,0.000268,2]
[391787912,1760817032353,-250.0,0.00027985,7]
[391787913,1760817032363,-150.0,0.00028102,2]
[391787914,1760817032372,-154.04,0.00028173,2]
[391787915,1760817032382,-1000.0,0.00028294,2]
[391787916,1760817032392,-26589.28,0.00028295,2]
[391787917,1760817032402,-5000.0,0.00028312,2]
[391787918,1760817032413,-2717.05,0.00028662,2]
[391787919,1760817032423,-666.0,0.00028715,3]
[391787920,1760817032433,-166.66,0.00028868,30]
[391787921,1760817032445,-150.0,0.00029145,7]
[391787922,1760817032455,-166.66,0.00029476,30]
[391787923,1760817032464,-150.0,0.0002955,7]
[391787924,1760817032476,-1000.0,0.00029653,30]
[391787925,1760817032487,-1000.0,0.00029653,30]
[391787926,1760817032497,-303.615,0.00029653,30]
[391787927,1760817032507,-150.0,0.00029955,7]
[391787928,1760817032517,-3476.04425532,0.0002999,2]
[391787929,1760817032718,-808.405,0.00030084,25]
[391787930,1760817032729,-166.66,0.00030084,30]
[391787931,1760817032739,-174.19,0.00030118,7]
[391787932,1760817032750,-500.0,0.00030136,2]
[391787933,1760817032761,-500.0,0.00030136,2]
[391787934,1760817032772,-150.0,0.0003036,7]
[391787935,1760817032782,-500.0,0.0003041,2]
[391787936,1760817032793,-500.0,0.0003041,2]
[391787937,1760817032803,-1000.0,0.000305,2]
[391787938,1760817032814,-1000.0,0.00030533,2]
[391787939,1760817032827,-3611.61,0.0003062,2]
[391787940,1760817032837,-500.0,0.00030684,2]
[391787941,1760817032847,-500.0,0.00030684,2]
[391787942,1760817032857,-166.66,0.00030692,30]
[391787943,1760817032867,-150.0,0.00030764,7]
[391787944,1760817032877,-600.0,0.00030817,2]
[391787945,1760817032887,-322.6107,0.00030817,2]
[391787946,1760817032896,-1000.0,0.00030817,2]
[391787947,1760817032907,-9552.16786547,0.00030817,2]
[391787948,1760817032918,-1000.0,0.00030817,2]
[391787949,1760817032928,-1000.0,0.00030817,2]
[391787950,1760817032938,-1000.0,0.00030817,2]
[391787951,1760817032949,-1000.0,0.00030817,2]
[391787952,1760817032958,-151.0,0.00030817,2]
[391787953,1760817032969,-1000.0,0.00030817,2]
[391787954,1760817032979,-721.12765535,0.00030817,2]
[391787955,1760817032990,-1000.0,0.00030817,2]
[391787956,1760817033000,-151.0,0.00030817,2]
[391787957,1760817033010,-1000.0,0.00030817,2]
[391787958,1760817033021,-1000.0,0.00030817,2]
[391787959,1760817033030,-1000.0,0.00030817,2]
[391787960,1760817033040,-1000.0,0.00030817,2]
[391787961,1760817033050,-277.35679052,0.00030817,2]
[391787962,1760817033060,-1000.0,0.00030817,2]
[391787963,1760817033069,-1000.0,0.00030817,2]
[391787964,1760817033079,-1000.0,0.00030817,2]
[391787965,1760817033089,-1000.0,0.00030817,2]
[391787966,1760817033098,-1000.0,0.00030817,2]
[391787967,1760817033108,-1000.0,0.00030817,2]
[391787968,1760817033118,-1000.0,0.00030817,2]
[391787969,1760817033128,-750.0,0.00030817,2]
[391787970,1760817033137,-1000.0,0.00030817,2]
[391787971,1760817033147,-1000.0,0.00030817,2]
[391787972,1760817033156,-1000.0,0.00030817,2]
[391787973,1760817033166,-1000.0,0.00030817,2]
[391787974,1760817033177,-693.3919763,0.00030817,2]
[391787975,1760817033186,-1000.0,0.00030817,2]
[391787976,1760817033196,-1000.0,0.00030817,2]
[391787977,1760817033205,-151.0,0.00030817,2]
[391787978,1760817033215,-151.0,0.00030817,2]
[391787979,1760817033225,-151.0,0.00030817,2]
[391787980,1760817033235,-151.0,0.00030817,2]
[391787981,1760817033245,-151.0,0.00030817,2]
[391787982,1760817033255,-250.0,0.00030817,2]
[391787983,1760817033264,-151.0,0.00030817,2]
[391787984,1760817033274,-227.68844372,0.00030817,2]
[391787985,1760817033284,-151.0,0.00030817,2]
[391787986,1760817033295,-250.0,0.00030817,2]
[391787987,1760817033305,-250.0,0.00030817,2]
[391787988,1760817033317,-267.04530677,0.00030817,2]
[391787989,1760817033327,-9300.08284109,0.0003086,2]
[391787990,1760817033337,-502.10987087,0.00030873,5]
[391787991,1760817033346,-500.0,0.00030873,5]
[391787992,1760817033356,-500.0,0.00030873,5]
[391787993,1760817033366,-500.25391577,0.00030873,5]
[391787994,1760817033376,-500.0,0.00030873,5]
[391787995,1760817033386,-500.0,0.00030873,5]
[391787996,1760817033396,-500.0,0.00030958,2]
[391787997,1760817033406,-500.0,0.00030958,2]
[391787998,1760817033416,-18357.95,0.00031122,120]
[391787999,1760817033428,-475.74147678,0.00031122,120]
[391788000,1760817033439,-500.0,0.0003113,7]
[391788001,1760817033449,-500.0,0.0003113,7]
[391788002,1760817033459,-500.0,0.0003113,7]
[391788003,1760817033468,-150.0,0.00031169,7]
[391788004,1760817033481,-500.0,0.00031232,2]
[391788005,1760817033491,-500.0,0.00031232,2]
[391788006,1760817033500,-166.66,0.000313,30]
[391788007,1760817033510,-600.0,0.00031365,2]
[391788008,1760817033522,-11223.0,0.00031371,2]
[391788009,1760817033532,-168.0,0.000315,2]
[391788010,1760817033542,-500.0,0.00031506,2]
[391788011,1760817033551,-500.0,0.00031506,2]
[391788012,1760817033561,-478.43472359,0.00031525,2]
[391788013,1760817033576,-445.53965544,0.00031525,2]
[391788014,1760817033585,-150.0,0.00031574,7]
[391788015,1760817033595,-168.0,0.00031607,2]
[391788016,1760817033605,-168.0,0.00031628,2]
[391788017,1760817033618,-351.91,0.00031753,2]
[391788018,1760817033627,-150.0,0.00031753,2]
[391788019,1760817033637,-176.09,0.00031753,2]
[391788020,1760817033647,-500.0,0.0003178,2]
[391788021,1760817033656,-500.0,0.0003178,2]
[391788022,1760817033666,-289.2,0.00031825,2]
[391788023,1760817033676,-300.0,0.00031839,2]
[391788024,1760817033686,-168.0,0.00031861,2]
[391788025,1760817033696,-166.66,0.00031907,30]
[391788026,1760817033706,-1093.24,0.00031973,2]
[391788027,1760817033716,-827.18,0.00031973,2]
[391788028,1760817033726,-336.17,0.00031973,2]
[391788029,1760817033736,-150.0,0.00031979,7]
[391788030,1760817033746,-151.0,0.00031997,7]
[391788031,1760817033755,-5186.33,0.00031999,2]
[391788032,1760817033767,-597.35,0.00031999,2]
[391788033,1760817033778,-4362.6685768,0.00032,23]
[391788034,1760817033788,-7871.96817958,0.00032,3]
[391788035,1760817033891,-312.0,0.00032,3]
[391788036,1760817033904,-344.77952441,0.00032,3]
[391788037,1760817033916,-421.82543743,0.00032,3]
[391788038,1760817033927,-309.39056056,0.00032,3]
[391788039,1760817033939,-28290.00000001,0.00032,3]
[391788040,1760817033954,-2729.30388547,0.00032,3]
[391788043,1760817037452,-80792.84332479,0.00032,3]
[391788044,1760817037462,-956.76587835,0.00032,120]
[391788045,1760817037472,-500.0,0.00032054,2]
[391788046,1760817037486,-500.0,0.00032054,2]
[391788047,1760817037496,-1000.0,0.00032054,30]
[391788048,1760817037505,-540.0,0.00032106,7]
[391788049,1760817037515,-2500.0,0.00032161,2]
[391788050,1760817037525,-200.0,0.0003224,2]
[391788051,1760817037535,-1573.5285184,0.00032273,2]
[391788052,1760817037544,-8155.0614231,0.00032273,2]
[391788053,1760817037554,-5583.5955541,0.00032273,2]
[391788054,1760817037563,-45404.9915925,0.00032273,2]
[391788055,1760817037573,-4937.3663397,0.00032273,2]
[391788056,1760817037583,-5680.9848348,0.00032273,2]
[391788057,1760817037592,-5186.33,0.00032273,2]
[391788058,1760817037603,-597.35,0.00032273,2]
[391788059,1760817037612,-3821.0615468,0.00032273,2]
[391788060,1760817037621,-189.14,0.00032291,2]
[391788061,1760817037631,-3411.1835496,0.00032299,2]
[391788062,1760817037641,-1002.7672,0.00032299,2]
[391788063,1760817037651,-500.0,0.00032299,2]
[391788064,1760817037660,-1466.95778474,0.00032299,4]
[391788065,1760817037669,-500.0,0.00032299,2]
[391788066,1760817037678,-500.0,0.00032299,2]
[391788067,1760817037687,-3214.27,0.00032299,2]
[391788068,1760817037697,-500.0,0.00032299,2]
[391788069,1760817037706,-45780.9786,0.000323,2]
[391788070,1760817037715,-1000.0,0.000323,2]
[391788071,1760817037724,-196.54268563,0.000323,2]
[391788072,1760817037733,-5000.0,0.000323,2]
[391788073,1760817037742,-232.99196294,0.000323,2]
[391788074,1760817037751,-168.0,0.00032314,2]
[391788075,1760817037760,-3411.18354952,0.00032317,2]
[391788076,1760817037769,-500.0,0.00032328,2]
[391788077,1760817037779,-500.0,0.00032328,2]
[391788078,1760817037788,-3411.18354952,0.00032336,2]
[391788079,1760817037798,-3411.18354952,0.00032354,2]
[391788080,1760817037807,-3411.18354952,0.00032373,2]
[391788081,1760817037816,-150.0,0.0003238,2]
[391788082,1760817037826,-500.0,0.0003238,2]
[391788083,1760817037839,-164.08712782,0.00032382,15]
[391788084,1760817037848,-232.99196293,0.00032383,2]
[391788085,1760817037859,-150.0,0.00032384,7]
[391788086,1760817037869,-1671.0,0.0003239,5]
[391788087,1760817037878,-475.74147678,0.0003239,3]
[391788088,1760817037888,-2380.24559,0.0003239,2]
[391788089,1760817037899,-207.76230935,0.0003239,2]
[391788090,1760817037909,-150.35,0.0003239,2]
[391788091,1760817037918,-150.35,0.0003239,2]
[391788092,1760817037927,-150.35,0.0003239,2]
[391788093,1760817037937,-150.35,0.0003239,2]
[391788094,1760817037946,-150.35,0.0003239,2]
[391788095,1760817037955,-150.35,0.0003239,2]
[391788096,1760817037964,-150.35,0.0003239,2]
[391788097,1760817037974,-3411.18354952,0.00032391,2]
[391788098,1760817037984,-500.0,0.00032398,2]
[391788099,1760817037994,-1192.35,0.00032398,2]
[391788100,1760817038003,-1000.0,0.00032398,2]
[391788101,1760817038012,-500.0,0.00032398,2]
[391788102,1760817038022,-500.0,0.00032398,2]
[391788103,1760817038032,-112773.78852884,0.00032399,2]
[391788104,1760817038045,-542.583,0.00032399,2]
[391788105,1760817038057,-1139.7,0.00032399,2]
[391788106,1760817038069,-607.60045795,0.00032399,2]
[391788107,1760817038081,-615.98464688,0.00032399,2]
[391788120,1760817039544,-442.0,0.00032399,2]
[391788121,1760817039672,-3000.0,0.00032399,2]
[391788122,1760817039693,-6943.25331609,0.00032399,2]
[391788123,1760817039812,-421.85952,0.00032399,2]
[391788124,1760817039827,-294652.62444165,0.00032399,2]
[391788125,1760817039837,-433.97101667,0.00032399,2]
[391788126,1760817039847,-150.0,0.00032399,2]
[391788127,1760817039856,-1405.72,0.00032399,2]
[391788128,1760817039866,-500.0,0.00032399,2]
[391788129,1760817039875,-300.0,0.00032399,2]
[391788130,1760817039885,-150.0,0.00032399,20]
[391788131,1760817039895,-999.0,0.00032399,120]
[391788132,1760817039905,-500.0,0.00032399,2]
[391788133,1760817039915,-500.0,0.00032399,2]
[391788134,1760817039924,-557.82261993,0.00032399,2]
[391788135,1760817039935,-500.0,0.00032399,2]
[391788136,1760817039944,-500.0,0.00032399,2]
[391788137,1760817039955,-257892.69184171,0.000324,17]
[391788138,1760817039964,-69651.51855349,0.000324,4]
[391788172,1760817042627,-500.0,0.00031999,2]
[391788174,1760817042636,-8.24194064,0.00032273,2]
[391788176,1760817042648,-491.75805936,0.00032273,2]
[391788178,1760817042657,-1193.83418806,0.000324,4]
[391788181,1760817042682,-2480.7,0.000324,4]
[391788185,1760817042819,-316.36887594,0.000324,4]
[391788186,1760817042830,-549.2802191,0.000324,4]
[391788198,1760817045561,-500.0,0.00031999,2]
[391788199,1760817045571,-327.30677729,0.000324,4]
[391788200,1760817045583,-653.47039619,0.000324,4]
[391788201,1760817045614,-7408.83869978,0.000324,4]
[391788202,1760817045878,-570.22282652,0.000324,4]
[391788203,1760817045891,-1121.60511988,0.000324,4]
[391788210,1760817220111,-300.0,0.0001514,2]
[391788212,1760817365858,-11.911,0.0001514,2]
[391788213,1760817365884,-239.83696997,0.00015578,2]
[391788214,1760817394094,-199.18036291,0.00015578,2]
[391788216,1760817485196,-17.57266712,0.00015578,2]
[391788217,1760817485222,-276.1748678,0.00015783,2]
[391788218,1760817565400,1000.0,0.00032784,30]
[391788219,1760817566089,1000.0,0.00032784,30]
[391788220,1760817566753,1000.0,0.00032784,30]
[391788221,1760817567459,1000.0,0.00032784,30]
[391788222,1760817568692,1000.0,0.00032784,30]
[391788223,1760817569392,1000.0,0.00032784,30]
[391788224,1760817570089,1000.0,0.00032784,30]
[391788225,1760817570839,628.61100759,0.00032784,30]
[391788232,1760818068855,20000.0,0.00032789,30]
[391788236,1760818231678,-163.70797485,0.00015837,2]
[391788237,1760818231688,-155.58980658,0.00015849,2]
[391788238,1760818231698,-253.38640261,0.00015862,2]
[391788239,1760818231707,-250.0,0.00015862,2]
[391788240,1760818231717,-500.0,0.00015887,2]
[391788241,1760818231726,-500.0,0.00016112,2]
[391788242,1760818231735,-500.0,0.00016112,2]
[391788243,1760818231745,-500.0,0.00016112,2]
[391788244,1760818231755,-456.59,0.00016398,2]
[391788245,1760818231764,-500.0,0.00016438,2]
[391788246,1760818231773,-121.12581596,0.00016651,2]
[391788247,1760818235335,-178.87418404,0.00016651,2]
[391788248,1760818235345,-300.0,0.00016651,2]
[391788249,1760818235355,-349.99145146,0.00016651,2]
[391788250,1760818235494,-850.00854854,0.00016651,2]
[391788251,1760818235503,-456.59,0.00017218,2]
[391788252,1760818235513,-1346.49329756,0.000173,2]
[391788253,1760818235522,-151.0,0.00017351,2]
[391788254,1760818235531,-74.09605896,0.00017351,2]